[Event "Early-Titled-Tuesday-Blitz-January-23-2024"]
[Site "Chess.com"]
[Date "2024.01.23"]
[Round "5"]
[White "LyonBeast"]
[Black "TigrVShlyape"]
[Result "1-0"]
[WhiteElo "3159"]
[BlackElo "2933"]
[TimeControl "180+1"]
[EndTime "8:54:13 PST"]
[Termination "LyonBeast won on time"]

1. e4 {[%clk 0:02:57.8]} 1... e5 {[%clk 0:02:58.3]} 2. Nf3 {[%clk 0:02:57.6]}
2... Nc6 {[%clk 0:02:58.6]} 3. Bc4 {[%clk 0:02:55.8]} 3... Nf6 {[%clk
0:02:57.4]} 4. d3 {[%clk 0:02:54.9]} 4... h6 {[%clk 0:02:55.6]} 5. c3 {[%clk
0:02:53.6]} 5... d6 {[%clk 0:02:55.8]} 6. Nbd2 {[%clk 0:02:52.8]} 6... g6 {[%clk
0:02:55.6]} 7. a4 {[%clk 0:02:48]} 7... Bg7 {[%clk 0:02:42.7]} 8. b4 {[%clk
0:02:45.5]} 8... O-O {[%clk 0:02:41]} 9. Bb3 {[%clk 0:02:46]} 9... Nh5 {[%clk
0:02:23.5]} 10. Nc4 {[%clk 0:02:41.2]} 10... Be6 {[%clk 0:02:02]} 11. O-O {[%clk
0:02:36.5]} 11... Re8 {[%clk 0:01:51.3]} 12. b5 {[%clk 0:02:28.7]} 12... Nb8
{[%clk 0:01:48.7]} 13. d4 {[%clk 0:02:16.5]} 13... Nd7 {[%clk 0:01:36.8]} 14.
Re1 {[%clk 0:02:08.8]} 14... Bg4 {[%clk 0:01:27.1]} 15. Ne3 {[%clk 0:02:05.7]}
15... Bxf3 {[%clk 0:01:20.5]} 16. Qxf3 {[%clk 0:02:06.6]} 16... Nhf6 {[%clk
0:01:16.5]} 17. Bb2 {[%clk 0:01:55.9]} 17... exd4 {[%clk 0:01:10.3]} 18. cxd4
{[%clk 0:01:56.8]} 18... Rxe4 {[%clk 0:01:09.3]} 19. Bd5 {[%clk 0:01:53.3]}
19... Re7 {[%clk 0:00:51.7]} 20. Bxb7 {[%clk 0:01:48.7]} 20... Rb8 {[%clk
0:00:52]} 21. Bc6 {[%clk 0:01:48.9]} 21... a6 {[%clk 0:00:45.2]} 22. bxa6 {[%clk
0:01:34.9]} 22... Rxb2 {[%clk 0:00:36]} 23. a7 {[%clk 0:01:34.5]} 23... Nb6
{[%clk 0:00:34]} 24. Nc4 {[%clk 0:01:24.3]} 24... Rxe1+ {[%clk 0:00:13.1]} 25.
Rxe1 {[%clk 0:01:25.2]} 25... Nxc4 {[%clk 0:00:08.3]} 26. a8=Q {[%clk
0:01:12.8]} 26... Rb8 {[%clk 0:00:08.9]} 27. Qa6 {[%clk 0:01:09.8]} 27... Nd2
{[%clk 0:00:07]} 28. Qfe2 {[%clk 0:01:06.6]} 28... Nb3 {[%clk 0:00:06.8]} 29.
Qad3 {[%clk 0:01:03.5]} 29... Nh5 {[%clk 0:00:02.9]} 30. Qed1 {[%clk 0:00:55.8]}
1-0

[Event "Early-Titled-Tuesday-Blitz-January-23-2024"]
[Site "Chess.com"]
[Date "2024.01.23"]
[Round "5"]
[White "Viktor_Poddubnyi"]
[Black "wild3000"]
[Result "0-1"]
[WhiteElo "2255"]
[BlackElo "2434"]
[TimeControl "180+1"]
[EndTime "8:54:13 PST"]
[Termination "wild3000 won on time"]

1. e4 {[%clk 0:03:00.9]} 1... e6 {[%clk 0:02:34.7]} 2. d4 {[%clk 0:03:00.4]}
2... a6 {[%clk 0:02:34.9]} 3. c4 {[%clk 0:02:52.5]} 3... d6 {[%clk 0:02:33.3]}
4. Nc3 {[%clk 0:02:52.9]} 4... Nf6 {[%clk 0:02:33.4]} 5. Nf3 {[%clk 0:02:53.3]}
5... Be7 {[%clk 0:02:33.4]} 6. Be2 {[%clk 0:02:52.9]} 6... O-O {[%clk
0:02:33.9]} 7. O-O {[%clk 0:02:53.4]} 7... c5 {[%clk 0:02:34.4]} 8. h3 {[%clk
0:02:48.9]} 8... cxd4 {[%clk 0:02:33.3]} 9. Nxd4 {[%clk 0:02:48.4]} 9... Nc6
{[%clk 0:02:34.2]} 10. Be3 {[%clk 0:02:47.9]} 10... Bd7 {[%clk 0:02:34.1]} 11.
Qd2 {[%clk 0:02:40]} 11... Rc8 {[%clk 0:02:33.3]} 12. Rac1 {[%clk 0:02:39.2]}
12... Nxd4 {[%clk 0:02:27.7]} 13. Bxd4 {[%clk 0:02:36]} 13... Bc6 {[%clk
0:02:28.6]} 14. f3 {[%clk 0:02:34.6]} 14... d5 {[%clk 0:02:23.7]} 15. cxd5
{[%clk 0:02:25.8]} 15... exd5 {[%clk 0:02:23.5]} 16. e5 {[%clk 0:02:26.3]} 16...
Nh5 {[%clk 0:02:23.2]} 17. Rfe1 {[%clk 0:02:01]} 17... Bh4 {[%clk 0:02:22.1]}
18. Red1 {[%clk 0:01:55.9]} 18... Qg5 {[%clk 0:02:14.8]} 19. Qxg5 {[%clk
0:01:19.6]} 19... Bxg5 {[%clk 0:02:15.7]} 20. Rc2 {[%clk 0:01:19.8]} 20... Nf4
{[%clk 0:02:07.1]} 21. Bf1 {[%clk 0:01:19.5]} 21... Ne6 {[%clk 0:02:03.7]} 22.
Bf2 {[%clk 0:00:56.7]} 22... d4 {[%clk 0:01:35.2]} 23. Ne2 {[%clk 0:00:42.1]}
23... Rfd8 {[%clk 0:01:20.3]} 24. Nxd4 {[%clk 0:00:40.1]} 24... Nxd4 {[%clk
0:01:20.3]} 25. Rxd4 {[%clk 0:00:39.8]} 25... Rxd4 {[%clk 0:01:19]} 26. Bxd4
{[%clk 0:00:40.7]} 26... Rd8 {[%clk 0:01:19.2]} 27. Bf2 {[%clk 0:00:22.3]} 27...
Rd1 {[%clk 0:01:16.5]} 28. g3 {[%clk 0:00:09.1]} 28... h5 {[%clk 0:01:16.3]} 29.
f4 {[%clk 0:00:08.1]} 29... Be7 {[%clk 0:01:15.3]} 30. Re2 {[%clk 0:00:03]}
30... Bb4 {[%clk 0:01:08.8]} 0-1

[Event "Early-Titled-Tuesday-Blitz-January-23-2024"]
[Site "Chess.com"]
[Date "2024.01.23"]
[Round "5"]
[White "KhazhatulyAlikhan"]
[Black "JeFumeDesClopes"]
[Result "0-1"]
[WhiteElo "2357"]
[BlackElo "2546"]
[TimeControl "180+1"]
[EndTime "8:54:14 PST"]
[Termination "JeFumeDesClopes won on time"]

1. e4 {[%clk 0:03:00.9]} 1... g6 {[%clk 0:02:59.9]} 2. d4 {[%clk 0:02:56.5]}
2... Bg7 {[%clk 0:03:00.5]} 3. Nf3 {[%clk 0:02:55.7]} 3... d6 {[%clk 0:02:59.6]}
4. Nc3 {[%clk 0:02:55.8]} 4... a6 {[%clk 0:02:58.2]} 5. Be2 {[%clk 0:02:55.9]}
5... Nf6 {[%clk 0:02:57.7]} 6. O-O {[%clk 0:02:55.9]} 6... O-O {[%clk
0:02:58.4]} 7. h3 {[%clk 0:02:56.5]} 7... b5 {[%clk 0:02:57.2]} 8. a3 {[%clk
0:02:56.3]} 8... Bb7 {[%clk 0:02:57.2]} 9. Bd3 {[%clk 0:02:56.7]} 9... Nbd7
{[%clk 0:02:56.9]} 10. Re1 {[%clk 0:02:36.6]} 10... e5 {[%clk 0:02:32.5]} 11.
dxe5 {[%clk 0:02:28.7]} 11... Nxe5 {[%clk 0:02:32.4]} 12. Nxe5 {[%clk
0:02:28.3]} 12... dxe5 {[%clk 0:02:33.3]} 13. Be3 {[%clk 0:02:29]} 13... Qe7
{[%clk 0:02:30.6]} 14. b4 {[%clk 0:02:27.7]} 14... Nd7 {[%clk 0:02:31.1]} 15. a4
{[%clk 0:01:34.4]} 15... Qxb4 {[%clk 0:02:23.9]} 16. Qd2 {[%clk 0:01:34.6]}
16... c6 {[%clk 0:02:13.6]} 17. Reb1 {[%clk 0:01:11.4]} 17... Qd6 {[%clk
0:02:13.4]} 18. Bh6 {[%clk 0:01:07.9]} 18... Nc5 {[%clk 0:02:08]} 19. Bxg7
{[%clk 0:00:56.1]} 19... Kxg7 {[%clk 0:02:08.9]} 20. Qe3 {[%clk 0:00:54.9]}
20... Qd4 {[%clk 0:02:06.2]} 21. Qxd4 {[%clk 0:00:43]} 21... exd4 {[%clk
0:02:07.1]} 22. Ne2 {[%clk 0:00:43.8]} 22... Rfd8 {[%clk 0:01:55.4]} 23. axb5
{[%clk 0:00:32.3]} 23... cxb5 {[%clk 0:01:54.3]} 24. Rb4 {[%clk 0:00:32.3]}
24... Bxe4 {[%clk 0:01:45]} 25. Bxe4 {[%clk 0:00:26]} 25... Nxe4 {[%clk
0:01:45.9]} 26. Nxd4 {[%clk 0:00:26.8]} 26... Nc5 {[%clk 0:01:36.7]} 27. Nf3
{[%clk 0:00:11.1]} 27... Rdc8 {[%clk 0:01:06.2]} 28. Ra2 {[%clk 0:00:06.6]}
28... Na4 {[%clk 0:01:00.5]} 29. c4 {[%clk 0:00:04.2]} 29... Nc3 {[%clk
0:01:00.9]} 30. Rc2 {[%clk 0:00:02]} 30... a5 {[%clk 0:01:00.9]} 0-1

[Event "Early-Titled-Tuesday-Blitz-January-23-2024"]
[Site "Chess.com"]
[Date "2024.01.23"]
[Round "5"]
[White "Maxfan2008"]
[Black "Knightmare1014"]
[Result "1-0"]
[WhiteElo "2533"]
[BlackElo "2272"]
[TimeControl "180+1"]
[EndTime "8:54:17 PST"]
[Termination "Maxfan2008 won by checkmate"]

1. d4 {[%clk 0:03:00.9]} 1... d5 {[%clk 0:02:50.3]} 2. c4 {[%clk 0:03:00.3]}
2... e6 {[%clk 0:02:50.5]} 3. Nc3 {[%clk 0:02:59.8]} 3... Nf6 {[%clk 0:02:49.9]}
4. cxd5 {[%clk 0:02:59.6]} 4... exd5 {[%clk 0:02:49.5]} 5. Bg5 {[%clk
0:02:59.1]} 5... Be7 {[%clk 0:02:47.5]} 6. e3 {[%clk 0:02:58]} 6... c6 {[%clk
0:02:48]} 7. Bd3 {[%clk 0:02:56.9]} 7... Nbd7 {[%clk 0:02:48.3]} 8. Qc2 {[%clk
0:02:55.5]} 8... h6 {[%clk 0:02:47.7]} 9. Bh4 {[%clk 0:02:54.3]} 9... Nh5 {[%clk
0:02:48.3]} 10. Bxe7 {[%clk 0:02:52.8]} 10... Qxe7 {[%clk 0:02:48.3]} 11. Nge2
{[%clk 0:02:53.2]} 11... Nb6 {[%clk 0:02:46]} 12. h3 {[%clk 0:02:51.1]} 12...
Bd7 {[%clk 0:02:44.1]} 13. O-O-O {[%clk 0:02:50.2]} 13... O-O-O {[%clk
0:02:43.1]} 14. Kb1 {[%clk 0:02:50]} 14... Kb8 {[%clk 0:02:42.8]} 15. Rc1 {[%clk
0:02:46.8]} 15... g6 {[%clk 0:02:41.9]} 16. g4 {[%clk 0:02:44.3]} 16... Ng7
{[%clk 0:02:41.3]} 17. Na4 {[%clk 0:02:41.7]} 17... Nxa4 {[%clk 0:02:38.3]} 18.
Qxa4 {[%clk 0:02:42.2]} 18... Ne8 {[%clk 0:02:37]} 19. Rc3 {[%clk 0:02:33.2]}
19... Nd6 {[%clk 0:02:37.4]} 20. Rb3 {[%clk 0:02:15.8]} 20... f5 {[%clk
0:02:27.4]} 21. Nf4 {[%clk 0:02:09]} 21... Rhg8 {[%clk 0:02:19.8]} 22. Rc1
{[%clk 0:01:56.1]} 22... g5 {[%clk 0:02:10.3]} 23. Ne2 {[%clk 0:01:47.8]} 23...
fxg4 {[%clk 0:02:10.1]} 24. hxg4 {[%clk 0:01:47]} 24... c5 {[%clk 0:01:57.3]}
25. Qa5 {[%clk 0:01:12.9]} 25... c4 {[%clk 0:01:52.7]} 26. Ra3 {[%clk
0:01:12.3]} 26... Nc8 {[%clk 0:01:50.6]} 27. Bc2 {[%clk 0:00:43.7]} 27... Bxg4
{[%clk 0:01:49]} 28. Nc3 {[%clk 0:00:41.7]} 28... Qc7 {[%clk 0:01:41.3]} 29. Qb4
{[%clk 0:00:33.3]} 29... Qb6 {[%clk 0:01:38.3]} 30. Nxd5 {[%clk 0:00:16.2]}
30... Rxd5 {[%clk 0:01:28.1]} 31. Qxc4 {[%clk 0:00:15.6]} 31... Rgd8 {[%clk
0:01:27.4]} 32. Rb3 {[%clk 0:00:14.7]} 32... Qd6 {[%clk 0:01:17.9]} 33. Be4
{[%clk 0:00:13.9]} 33... Ra5 {[%clk 0:01:12.7]} 34. Rxb7+ {[%clk 0:00:13.2]}
34... Ka8 {[%clk 0:01:10.6]} 35. Rb6+ {[%clk 0:00:13]} 35... Qd5 {[%clk
0:01:07.9]} 36. Bxd5+ {[%clk 0:00:13.2]} 36... Raxd5 {[%clk 0:01:06.9]} 37. Qc6#
{[%clk 0:00:12.4]} 1-0

[Event "Early-Titled-Tuesday-Blitz-January-23-2024"]
[Site "Chess.com"]
[Date "2024.01.23"]
[Round "5"]
[White "GMKrikor"]
[Black "Artyom_ChessMate"]
[Result "1-0"]
[WhiteElo "2804"]
[BlackElo "2536"]
[TimeControl "180+1"]
[EndTime "8:54:21 PST"]
[Termination "GMKrikor won by resignation"]

1. Nf3 {[%clk 0:03:00.9]} 1... d5 {[%clk 0:02:57.9]} 2. c4 {[%clk 0:03:00]} 2...
e6 {[%clk 0:02:57.2]} 3. d4 {[%clk 0:02:55.1]} 3... Nf6 {[%clk 0:02:57.2]} 4.
cxd5 {[%clk 0:02:54.6]} 4... exd5 {[%clk 0:02:56.4]} 5. Nc3 {[%clk 0:02:54.9]}
5... c6 {[%clk 0:02:56.8]} 6. Bf4 {[%clk 0:02:53.9]} 6... Bd6 {[%clk 0:02:56.1]}
7. Bxd6 {[%clk 0:02:53.9]} 7... Qxd6 {[%clk 0:02:57]} 8. e3 {[%clk 0:02:54.6]}
8... Bf5 {[%clk 0:02:57]} 9. Nh4 {[%clk 0:02:54.4]} 9... Bg4 {[%clk 0:02:48.6]}
10. Qb3 {[%clk 0:02:53.8]} 10... Nbd7 {[%clk 0:02:44.2]} 11. h3 {[%clk
0:02:51.5]} 11... Bh5 {[%clk 0:02:43.3]} 12. Nf5 {[%clk 0:02:51.3]} 12... Qc7
{[%clk 0:02:15.5]} 13. Nxg7+ {[%clk 0:02:27.2]} 13... Kf8 {[%clk 0:02:14.8]} 14.
Nxh5 {[%clk 0:02:24.5]} 14... Nxh5 {[%clk 0:02:15.7]} 15. O-O-O {[%clk
0:02:22.5]} 15... a5 {[%clk 0:02:11.9]} 16. Kb1 {[%clk 0:02:22.6]} 16... a4
{[%clk 0:02:12.2]} 17. Nxa4 {[%clk 0:02:17.6]} 17... Qa5 {[%clk 0:02:12.3]} 18.
Nc3 {[%clk 0:02:15.6]} 18... b5 {[%clk 0:02:12.6]} 19. Rc1 {[%clk 0:02:07.6]}
19... b4 {[%clk 0:02:00.5]} 20. Nd1 {[%clk 0:01:52.6]} 20... c5 {[%clk
0:01:58.9]} 21. Qxd5 {[%clk 0:01:45.7]} 21... Nhf6 {[%clk 0:01:58.3]} 22. Qd6+
{[%clk 0:01:35.2]} 22... Kg7 {[%clk 0:01:57.8]} 23. Qg3+ {[%clk 0:01:34.6]}
23... Kf8 {[%clk 0:01:55.4]} 24. Bc4 {[%clk 0:01:33]} 24... Rg8 {[%clk
0:01:49.2]} 25. Qd6+ {[%clk 0:01:31.9]} 25... Kg7 {[%clk 0:01:49.7]} 26. Bb3
{[%clk 0:00:55.2]} 26... Rgc8 {[%clk 0:01:46.6]} 27. d5 {[%clk 0:00:35.8]} 27...
c4 {[%clk 0:01:27.6]} 28. Rxc4 {[%clk 0:00:32]} 28... Rxc4 {[%clk 0:01:22.3]}
29. Bxc4 {[%clk 0:00:32.4]} 29... Rc8 {[%clk 0:01:21.8]} 30. b3 {[%clk
0:00:27.1]} 30... Rc7 {[%clk 0:00:44.9]} 31. Qf4 {[%clk 0:00:21.4]} 31... Nb6
{[%clk 0:00:38.5]} 32. Qxc7 {[%clk 0:00:20.9]} 1-0

[Event "Early-Titled-Tuesday-Blitz-January-23-2024"]
[Site "Chess.com"]
[Date "2024.01.23"]
[Round "5"]
[White "Orphanator2009"]
[Black "carloseduar100"]
[Result "1-0"]
[WhiteElo "2471"]
[BlackElo "2288"]
[TimeControl "180+1"]
[EndTime "8:54:21 PST"]
[Termination "Orphanator2009 won by resignation"]

1. d4 {[%clk 0:03:00.9]} 1... d5 {[%clk 0:02:15]} 2. c4 {[%clk 0:02:50.1]} 2...
e5 {[%clk 0:02:14.5]} 3. dxe5 {[%clk 0:02:45.3]} 3... d4 {[%clk 0:02:14.7]} 4.
Nf3 {[%clk 0:02:29.8]} 4... Nc6 {[%clk 0:02:13.7]} 5. a3 {[%clk 0:02:23.1]} 5...
Nge7 {[%clk 0:02:08]} 6. e3 {[%clk 0:02:15.2]} 6... Bg4 {[%clk 0:01:51.2]} 7. h3
{[%clk 0:02:12]} 7... Bxf3 {[%clk 0:01:48.8]} 8. Qxf3 {[%clk 0:02:12.9]} 8...
Nxe5 {[%clk 0:01:43.3]} 9. Qxb7 {[%clk 0:01:55.9]} 9... dxe3 {[%clk 0:01:40.5]}
10. Qb5+ {[%clk 0:01:40.3]} 10... N7c6 {[%clk 0:01:37]} 11. Bxe3 {[%clk
0:01:38.6]} 11... Rb8 {[%clk 0:01:36.7]} 12. Qd5 {[%clk 0:01:28.7]} 12... Rxb2
{[%clk 0:01:34]} 13. Qxd8+ {[%clk 0:01:28.7]} 13... Nxd8 {[%clk 0:01:30.2]} 14.
Bd4 {[%clk 0:01:20.5]} 14... Rxb1+ {[%clk 0:01:11.5]} 15. Rxb1 {[%clk
0:01:19.7]} 15... Ndc6 {[%clk 0:01:12.1]} 16. Bxe5 {[%clk 0:00:59.3]} 16... Nxe5
{[%clk 0:01:11.7]} 17. Be2 {[%clk 0:01:00.2]} 17... Nd7 {[%clk 0:00:54.3]} 18.
O-O {[%clk 0:00:28.7]} 18... Bxa3 {[%clk 0:00:44.4]} 19. Bg4 {[%clk 0:00:27.3]}
19... Bd6 {[%clk 0:00:39.5]} 20. Rfe1+ {[%clk 0:00:23]} 20... Kd8 {[%clk
0:00:34.7]} 21. Rbd1 {[%clk 0:00:21.2]} 21... Re8 {[%clk 0:00:19.5]} 22. Rxe8+
{[%clk 0:00:19.7]} 22... Kxe8 {[%clk 0:00:19.7]} 23. Bxd7+ {[%clk 0:00:20.6]}
23... Kxd7 {[%clk 0:00:19.5]} 24. c5 {[%clk 0:00:20.9]} 24... a5 {[%clk
0:00:19.2]} 25. cxd6 {[%clk 0:00:21.8]} 25... cxd6 {[%clk 0:00:19.3]} 26. Ra1
{[%clk 0:00:22.7]} 1-0

[Event "Early-Titled-Tuesday-Blitz-January-23-2024"]
[Site "Chess.com"]
[Date "2024.01.23"]
[Round "5"]
[White "TheNextLevelFan"]
[Black "tigurones"]
[Result "1-0"]
[WhiteElo "2557"]
[BlackElo "2396"]
[TimeControl "180+1"]
[EndTime "8:54:25 PST"]
[Termination "TheNextLevelFan won by resignation"]

1. e4 {[%clk 0:03:00.9]} 1... c5 {[%clk 0:02:57.6]} 2. c3 {[%clk 0:02:59.5]}
2... Nf6 {[%clk 0:02:56.7]} 3. e5 {[%clk 0:02:59.4]} 3... Nd5 {[%clk 0:02:57.2]}
4. Nf3 {[%clk 0:03:00.3]} 4... d6 {[%clk 0:02:56.4]} 5. d4 {[%clk 0:03:00.5]}
5... cxd4 {[%clk 0:02:55.1]} 6. cxd4 {[%clk 0:03:00.1]} 6... Nc6 {[%clk
0:02:50.7]} 7. Bc4 {[%clk 0:02:56.6]} 7... Nb6 {[%clk 0:02:49.7]} 8. Bd3 {[%clk
0:02:53.3]} 8... dxe5 {[%clk 0:02:42.9]} 9. dxe5 {[%clk 0:02:50.9]} 9... Bg4
{[%clk 0:02:40.1]} 10. Bf4 {[%clk 0:02:36.9]} 10... e6 {[%clk 0:02:25]} 11. O-O
{[%clk 0:02:30.9]} 11... Be7 {[%clk 0:02:23]} 12. h3 {[%clk 0:02:28.6]} 12...
Bh5 {[%clk 0:02:16.5]} 13. Nc3 {[%clk 0:02:29.1]} 13... O-O {[%clk 0:02:11.7]}
14. Re1 {[%clk 0:02:24.9]} 14... Bg6 {[%clk 0:01:48.1]} 15. Ne4 {[%clk
0:02:17.3]} 15... Nd5 {[%clk 0:01:43.5]} 16. Bg3 {[%clk 0:02:09.7]} 16... Ndb4
{[%clk 0:01:27.3]} 17. Bc4 {[%clk 0:02:08.6]} 17... Qxd1 {[%clk 0:01:21.8]} 18.
Raxd1 {[%clk 0:02:09.5]} 18... Rfd8 {[%clk 0:01:13.9]} 19. Nd6 {[%clk
0:02:09.6]} 19... Bxd6 {[%clk 0:00:43.7]} 20. exd6 {[%clk 0:02:09.5]} 20... Bh5
{[%clk 0:00:44.4]} 21. a3 {[%clk 0:01:51.4]} 21... Nc2 {[%clk 0:00:19.9]} 22.
Re4 {[%clk 0:01:50.5]} 22... Bg6 {[%clk 0:00:17]} 23. Re2 {[%clk 0:01:45.7]}
23... Rac8 {[%clk 0:00:17.1]} 24. d7 {[%clk 0:01:38.3]} 24... Ra8 {[%clk
0:00:16.3]} 25. Bc7 {[%clk 0:01:37.8]} 25... Rf8 {[%clk 0:00:16.5]} 26. Bb3
{[%clk 0:01:19.3]} 26... Nxa3 {[%clk 0:00:14]} 27. bxa3 {[%clk 0:01:19]} 27...
a5 {[%clk 0:00:14]} 28. Ba4 {[%clk 0:01:16.6]} 28... Nd8 {[%clk 0:00:14]} 29.
Bd6 {[%clk 0:01:15.8]} 29... f6 {[%clk 0:00:13.9]} 30. Bxf8 {[%clk 0:01:15.2]}
30... Kxf8 {[%clk 0:00:13.6]} 31. Nd4 {[%clk 0:01:07.1]} 31... Ke7 {[%clk
0:00:14]} 32. Nxe6 {[%clk 0:00:58.8]} 32... Nxe6 {[%clk 0:00:12.7]} 33. d8=Q+
{[%clk 0:00:55]} 33... Rxd8 {[%clk 0:00:10.1]} 34. Rxe6+ {[%clk 0:00:55]} 34...
Kxe6 {[%clk 0:00:11]} 35. Rxd8 {[%clk 0:00:54.9]} 35... Bd3 {[%clk 0:00:10.2]}
36. Rxd3 {[%clk 0:00:53.6]} 1-0

[Event "Early-Titled-Tuesday-Blitz-January-23-2024"]
[Site "Chess.com"]
[Date "2024.01.23"]
[Round "5"]
[White "kekic76"]
[Black "Tejas_Rama"]
[Result "0-1"]
[WhiteElo "2318"]
[BlackElo "2635"]
[TimeControl "180+1"]
[EndTime "8:54:25 PST"]
[Termination "Tejas_Rama won on time"]

1. e4 {[%clk 0:03:00.9]} 1... e5 {[%clk 0:02:59.9]} 2. Nf3 {[%clk 0:03:00.3]}
2... Nc6 {[%clk 0:03:00.5]} 3. d4 {[%clk 0:02:58.5]} 3... exd4 {[%clk
0:03:00.5]} 4. Nxd4 {[%clk 0:02:59.4]} 4... Nf6 {[%clk 0:03:00.6]} 5. Nc3 {[%clk
0:02:59]} 5... Bb4 {[%clk 0:03:00.3]} 6. Nxc6 {[%clk 0:02:57.9]} 6... bxc6
{[%clk 0:03:01.2]} 7. Bd3 {[%clk 0:02:57.6]} 7... O-O {[%clk 0:03:01.3]} 8. O-O
{[%clk 0:02:52.2]} 8... d5 {[%clk 0:03:01.3]} 9. exd5 {[%clk 0:02:52.1]} 9...
Bg4 {[%clk 0:03:00.1]} 10. Be2 {[%clk 0:02:20.9]} 10... Bxe2 {[%clk 0:02:58.7]}
11. Qxe2 {[%clk 0:02:21.8]} 11... cxd5 {[%clk 0:02:58.6]} 12. Bg5 {[%clk
0:02:15.5]} 12... c6 {[%clk 0:02:51.6]} 13. Qf3 {[%clk 0:02:11.8]} 13... Be7
{[%clk 0:02:50.6]} 14. Rfe1 {[%clk 0:02:08.2]} 14... h6 {[%clk 0:02:35.1]} 15.
Bh4 {[%clk 0:02:06.3]} 15... Re8 {[%clk 0:02:14.3]} 16. Ne2 {[%clk 0:02:01.7]}
16... Ne4 {[%clk 0:02:05.1]} 17. Bxe7 {[%clk 0:01:59.6]} 17... Qxe7 {[%clk
0:02:01.7]} 18. Nd4 {[%clk 0:01:49.3]} 18... c5 {[%clk 0:01:39.6]} 19. Nf5
{[%clk 0:01:47.8]} 19... Qf6 {[%clk 0:01:34.3]} 20. c3 {[%clk 0:00:49.5]} 20...
Re5 {[%clk 0:01:17.4]} 21. Ng3 {[%clk 0:00:46.7]} 21... Qxf3 {[%clk 0:01:16.9]}
22. gxf3 {[%clk 0:00:47.1]} 22... Ng5 {[%clk 0:01:17.4]} 23. Kg2 {[%clk
0:00:34.4]} 23... Rxe1 {[%clk 0:01:15.4]} 24. Rxe1 {[%clk 0:00:34.5]} 24... Ne6
{[%clk 0:01:14.3]} 25. Rd1 {[%clk 0:00:23.9]} 25... Rb8 {[%clk 0:01:12.7]} 26.
b3 {[%clk 0:00:20.4]} 26... a5 {[%clk 0:01:11.2]} 27. Kf1 {[%clk 0:00:17.4]}
27... d4 {[%clk 0:00:57.1]} 28. cxd4 {[%clk 0:00:12.2]} 28... cxd4 {[%clk
0:00:58]} 29. Nf5 {[%clk 0:00:12.1]} 29... Rb5 {[%clk 0:00:51.5]} 30. Nd6 {[%clk
0:00:06.7]} 30... Rh5 {[%clk 0:00:50.3]} 0-1

[Event "Early-Titled-Tuesday-Blitz-January-23-2024"]
[Site "Chess.com"]
[Date "2024.01.23"]
[Round "5"]
[White "AlexOstrovskiy"]
[Black "OneTrickPony_82"]
[Result "1-0"]
[WhiteElo "2791"]
[BlackElo "2520"]
[TimeControl "180+1"]
[EndTime "8:54:27 PST"]
[Termination "AlexOstrovskiy won by resignation"]

1. e4 {[%clk 0:03:00.9]} 1... e5 {[%clk 0:02:59.7]} 2. Nc3 {[%clk 0:02:55.1]}
2... Nc6 {[%clk 0:02:59.4]} 3. Bc4 {[%clk 0:02:53]} 3... Nf6 {[%clk 0:02:58.8]}
4. d3 {[%clk 0:02:52.8]} 4... Na5 {[%clk 0:02:58.9]} 5. Qf3 {[%clk 0:02:46.4]}
5... Bc5 {[%clk 0:02:55.5]} 6. Nge2 {[%clk 0:02:41.4]} 6... Nxc4 {[%clk
0:02:53.1]} 7. dxc4 {[%clk 0:02:41.6]} 7... d6 {[%clk 0:02:53.5]} 8. h3 {[%clk
0:02:40.6]} 8... Be6 {[%clk 0:02:50.1]} 9. b3 {[%clk 0:02:39.3]} 9... Nd7 {[%clk
0:02:48]} 10. O-O {[%clk 0:02:19.1]} 10... a6 {[%clk 0:02:46.4]} 11. Ng3 {[%clk
0:02:11.4]} 11... O-O {[%clk 0:02:44.4]} 12. Nf5 {[%clk 0:02:07.7]} 12... Bxf5
{[%clk 0:02:21.5]} 13. exf5 {[%clk 0:01:58.4]} 13... Bd4 {[%clk 0:02:16.1]} 14.
Bd2 {[%clk 0:01:54]} 14... Rb8 {[%clk 0:01:48.3]} 15. Rad1 {[%clk 0:01:53.3]}
15... Bxc3 {[%clk 0:01:44.6]} 16. Bxc3 {[%clk 0:01:52]} 16... b5 {[%clk
0:01:44.4]} 17. c5 {[%clk 0:01:24.9]} 17... Nxc5 {[%clk 0:01:44.2]} 18. Bxe5
{[%clk 0:01:24.5]} 18... Qg5 {[%clk 0:01:44.9]} 19. Bd4 {[%clk 0:01:18.1]} 19...
Rfe8 {[%clk 0:01:29.7]} 20. Bxc5 {[%clk 0:01:09.6]} 20... dxc5 {[%clk
0:01:29.4]} 21. Rd5 {[%clk 0:01:07.6]} 21... Rbd8 {[%clk 0:01:15.7]} 22. Rxc5
{[%clk 0:01:03.3]} 22... Rd2 {[%clk 0:01:15.7]} 23. Rxc7 {[%clk 0:00:59.6]}
23... h5 {[%clk 0:01:07.5]} 24. a4 {[%clk 0:00:32.6]} 24... bxa4 {[%clk
0:01:01]} 25. bxa4 {[%clk 0:00:33.5]} 25... Ree2 {[%clk 0:01:00.6]} 26. Qa8+
{[%clk 0:00:25.3]} 26... Kh7 {[%clk 0:01:00.8]} 27. Rxf7 {[%clk 0:00:21.3]}
27... Qf4 {[%clk 0:00:44.1]} 28. f6 {[%clk 0:00:13.4]} 28... Kg6 {[%clk
0:00:33.9]} 29. Rxg7+ {[%clk 0:00:13.5]} 29... Kxf6 {[%clk 0:00:34.4]} 30. Qf8+
{[%clk 0:00:13.1]} 30... Ke5 {[%clk 0:00:33.2]} 31. Re7+ {[%clk 0:00:12.3]} 1-0